bitfinex-derivatives/quotes_ETHF0:USTF0_20250217
["timestamp","ask_amount","ask_price","bid_price","bid_amount"]
[1739820814291,0.73805,2709.5,2709.3,0.73807]
[1739820814498,0.73804,2709.5,2709.4,0.73805]
[1739820814797,0.73801,2709.6,2709.4,0.73804]
[1739820815098,0.73804,2709.5,2709.4,0.73804]
[1739820815589,3.86189244,2709.6,2709.1,3.2078]
[1739820815791,0.73816,2709.1,2708.9,1.88149]
[1739820816397,0.73816,2709.1,2708.9,1.1433]
[1739820816597,1.8451,2709.5,2708.9,1.1433]
[1739820816799,0.73816,2709.1,2709.0,0.73817]
[1739820817192,0.73808,2709.4,2709.2,0.73811]
[1739820817391,0.73808,2709.4,2708.9,1.1433]
[1739820817392,3.94582,2709.6,2709.4,0.73807]
[1739820817692,0.73805,2709.5,2709.3,0.73808]
[1739820817901,3.94583,2709.6,2709.3,0.73808]
[1739820818098,3.2078,2709.6,2709.4,0.73805]
[1739820818297,3.2078,2709.6,2709.5,0.73804]
[1739820818601,3.94583,2709.6,2709.4,0.73805]
[1739820818903,3.2078,2709.6,2709.5,0.73804]
[1739820820200,0.73805,2709.5,2709.3,0.73808]
[1739820820494,3.2078,2709.6,2709.2,2.0319]
[1739820820800,3.94582,2709.6,2709.4,0.73806]
[1739820821193,3.2078,2709.6,2709.2,2.0319]
[1739820821396,0.7381,2709.3,2709.1,3.94595]
[1739820821599,0.73814,2709.2,2709.0,0.73817]
[1739820821896,0.7381,2709.3,2708.9,5.0502]
[1739820822097,1.75045,2709.5,2709.2,0.73811]
[1739820822398,3.2078,2709.6,2709.5,0.73804]
[1739820823595,3.2078,2709.6,2709.1,4.8100834]
[1739820823798,0.73812,2709.3,2709.0,2.04186724]
[1739820824102,0.73812,2709.3,2709.2,0.73812]
[1739820824295,1.0199,2709.5,2709.0,1.30370724]
[1739820824296,0.73808,2709.4,2709.0,1.30370724]
[1739820824501,0.73808,2709.4,2709.3,0.73809]
[1739820824905,3.2078,2709.6,2709.1,3.2078]
[1739820825100,3.2078,2709.6,2709.5,0.73804]
[1739820825803,4.2332372,2710.1,2709.4,3.2078]
[1739820826008,3.9512172,2710.1,2709.9,0.7379]
[1739820826298,3.2133372,2710.1,2709.9,0.7379]
[1739820826500,3.9512272,2710.1,2709.9,0.7379]
[1739820826699,3.2133372,2710.1,2709.9,0.7379]
[1739820826903,0.7379,2710.0,2709.9,0.7379]
[1739820827104,0.7379,2710.0,2709.5,6.93249244]
[1739820827105,3.2133372,2710.1,2709.8,0.73795]
[1739820827304,0.7379,2710.0,2709.8,0.73795]
[1739820827698,0.7379,2710.0,2709.5,3.0706]
[1739820827904,0.0055372,2710.1,2710.0,0.7379]
[1739820832709,0.0055372,2710.1,2709.7,3.2078]
[1739820832911,0.7434172,2710.1,2710.0,0.7379]
[1739820834618,5.0580572,2710.1,2709.5,3.0706]
[1739820834914,3.2133372,2710.1,2709.5,3.0706]
[1739820835103,3.2133372,2710.1,2709.6,0.73799]
[1739820835104,0.73795,2709.9,2709.6,0.73799]
[1739820835302,0.73796,2709.8,2709.6,0.73799]
[1739820835504,0.0055372,2710.1,2709.6,3.2078]
[1739820835708,0.0055372,2710.1,2710.0,0.7379]
[1739820837418,0.7434072,2710.1,2710.0,0.7379]
[1739820838314,0.0055372,2710.1,2710.0,0.7379]
[1739820838517,0.7434272,2710.1,2710.0,0.7379]
[1739820840517,0.0055372,2710.1,2710.0,0.7379]
[1739820843916,0.73794,2709.9,2709.8,0.73796]
[1739820844314,0.73792,2710.0,2709.9,0.73792]
[1739820844810,0.0055372,2710.1,2709.6,1.84503]
[1739820845011,0.7434272,2710.1,2710.0,0.7379]
[1739820845217,0.73792,2710.0,2709.9,0.73792]
[1739820845414,0.0055372,2710.1,2709.5,9.1964]
[1739820845615,3.86189244,2709.8,2709.5,3.2078]
[1739820845811,1.6816,2709.7,2709.5,0.73803]
[1739820846015,0.9436,2709.7,2709.2,0.9507]
[1739820846209,0.9436,2709.7,2709.6,0.73801]
[1739820846413,0.0055372,2710.1,2709.2,0.9507]
[1739820846718,0.73795,2709.9,2709.6,0.73799]
[1739820847113,0.73802,2709.6,2709.3,0.73808]
[1739820847517,0.73802,2709.6,2709.4,0.73805]
[1739820847720,3.2078,2709.8,2709.4,0.73805]
[1739820847913,3.86189244,2709.9,2709.2,0.9507]
[1739820848114,5.1369372,2710.1,2709.3,1.84524]
[1739820848316,0.73797,2709.8,2709.6,0.738]
[1739820848715,4.1569372,2710.1,2709.4,3.2078]
[1739820848915,4.1569372,2710.1,2710.0,0.7379]
[1739820849319,3.2133372,2710.1,2710.0,0.7379]
[1739820850313,0.0055372,2710.1,2710.0,0.7379]
[1739820851511,0.0055372,2710.1,2709.8,2.9096]
[1739820851916,0.0055372,2710.1,2710.0,0.7379]
[1739820853316,0.73793,2709.9,2709.4,3.2078]
[1739820853525,0.73797,2709.8,2709.5,0.73801]
[1739820853721,3.86189244,2709.7,2709.3,1.30370724]
[1739820853926,0.73807,2709.4,2709.3,1.30370724]
[1739820854326,0.73811,2709.3,2708.9,2.8859]
[1739820854523,0.73811,2709.3,2709.0,0.73816]
[1739820855021,0.73811,2709.3,2709.1,0.73814]
[1739820855226,0.73815,2709.1,2708.9,2.8859]
[1739820855425,4.81989244,2709.4,2708.8,3.2078]
[1739820855625,1.0116,2709.0,2708.6,0.73827]
[1739820856027,1.0116,2709.0,2708.5,0.9129]
[1739820856226,0.73823,2708.8,2708.5,0.9129]
[1739820856422,1.0116,2709.0,2708.7,0.7437772]
[1739820856629,1.0116,2709.0,2708.7,0.7437872]
[1739820856825,1.0116,2709.0,2708.8,0.73821]
[1739820857131,3.2078,2709.2,2708.9,0.7382]
[1739820857331,4.92656,2709.5,2708.8,3.2078]
[1739820857533,4.92656,2709.5,2709.1,0.73814]
[1739820857829,4.1885,2709.5,2708.9,1.906]
[1739820858329,4.1885,2709.5,2709.1,0.73813]
[1739820858920,0.9807,2709.5,2708.9,1.906]
[1739820859124,3.57740001,2709.9,2709.1,7.06969244]
[1739820859125,3.2078,2709.9,2709.1,7.06969244]
[1739820859327,3.2078,2709.9,2709.6,0.73798]
[1739820859621,3.2078,2709.9,2709.2,0.9574]
[1739820859622,0.0055372,2710.1,2710.0,0.7379]
[1739820860931,0.0055372,2710.1,2709.8,1.9307]
[1739820861232,0.73791,2710.0,2709.8,1.9307]
[1739820861427,0.0055372,2710.1,2709.8,1.0001]
[1739820861729,0.73797,2709.8,2709.3,2.70908]
[1739820862332,0.738,2709.7,2709.3,2.70908]
[1739820862632,0.73802,2709.6,2709.3,1.971]
[1739820862823,0.73802,2709.6,2709.3,2.70909]
[1739820863029,0.9263,2709.7,2709.1,3.2078]
[1739820863230,3.2078,2709.5,2708.8,0.9558]
[1739820863536,0.73817,2709.1,2708.7,1.7375872]
[1739820864033,0.73817,2709.1,2708.8,0.73822]
[1739820864234,3.2078,2709.5,2708.7,0.9993372]
[1739820864433,0.73813,2709.2,2708.9,0.73819]
[1739820864930,3.2078,2709.5,2708.7,0.9993372]
[1739820865126,3.2078,2709.2,2708.7,0.9993372]
[1739820865636,0.73822,2708.9,2708.7,0.0055372]
[1739820866021,0.73816,2709.1,2708.8,0.73822]
[1739820866228,0.73819,2709.0,2708.7,3.2133372]
[1739820866428,0.73819,2709.0,2708.7,3.9515872]
[1739820866834,3.2078,2709.2,2708.7,0.0055372]
[1739820867032,0.73816,2709.1,2708.8,0.73822]
[1739820867337,3.2078,2709.2,2708.7,0.0055372]
[1739820867338,0.73821,2708.9,2708.7,0.0055372]
[1739820867534,0.73821,2708.9,2708.7,0.7437872]
[1739820867734,0.73819,2709.0,2708.7,0.7437872]
[1739820868137,3.2078,2709.2,2708.7,0.7437872]
[1739820868527,0.7382,2708.9,2708.7,0.7437872]
[1739820868727,0.7382,2709.0,2708.7,0.7437872]
[1739820869237,3.2078,2709.2,2708.7,0.0055372]
[1739820869731,3.2078,2709.2,2708.7,0.7437872]
[1739820869939,0.73819,2709.0,2708.8,0.73822]
[1739820870127,0.73819,2709.0,2708.7,0.0055372]
[1739820870331,3.2078,2709.2,2708.7,0.0055372]
[1739820870637,0.7382,2709.0,2708.7,0.7437772]
[1739820870838,3.94603,2708.8,2708.7,0.0055372]
[1739820872538,4.90633,2708.8,2708.7,0.0055372]
[1739820872743,0.73839,2708.3,2708.1,0.73842]
[1739820873441,0.7384,2708.2,2708.0,3.94623]
[1739820874245,0.0055372,2708.4,2708.0,3.2078]
[1739820874642,0.73838,2708.3,2708.1,0.73841]
[1739820875234,0.0055372,2708.4,2708.0,3.2078]
[1739820875434,0.73839,2708.3,2708.0,3.94622]
[1739820875743,0.73839,2708.2,2708.0,3.94622]
[1739820877144,0.0055372,2708.4,2708.1,0.73842]
[1739820877346,0.7438972,2708.4,2708.1,0.73841]
[1739820877546,0.0055372,2708.4,2708.1,0.73841]
[1739820877742,0.73839,2708.3,2708.1,0.73841]
[1739820878449,0.0055372,2708.4,2708.1,0.73841]
[1739820878647,0.73839,2708.2,2708.1,0.73841]
[1739820880349,0.0055372,2708.4,2708.0,0.73844]
[1739820880553,0.73842,2708.2,2708.0,0.73844]
[1739820880748,0.0055372,2708.4,2707.8,5.1295372]
[1739820881049,0.0055372,2708.4,2707.8,6.9757772]
[1739820881245,0.73839,2708.3,2708.1,0.7384]
[1739820881447,0.73839,2708.2,2708.1,0.7384]
[1739820881745,0.7384,2708.2,2708.1,0.7384]
[1739820881948,0.7384,2708.2,2708.1,0.73842]
[1739820882950,0.0055372,2708.4,2707.8,5.1295372]
[1739820883150,0.73841,2708.2,2708.1,0.73841]
[1739820886056,0.73841,2708.2,2707.8,5.1295372]
[1739820886254,0.73841,2708.2,2708.1,0.73842]
[1739820886556,0.0055372,2708.4,2707.9,1.84619]
[1739820886754,0.7438772,2708.4,2708.2,0.73837]
[1739820887058,0.73837,2708.3,2708.1,0.7384]
[1739820887348,0.7438972,2708.4,2708.0,1.84612]
[1739820887547,0.7438872,2708.4,2708.2,0.73838]
[1739820887748,0.73839,2708.2,2708.1,0.73841]
[1739820887950,0.73838,2708.3,2708.2,0.73839]
[1739820888464,0.7384,2708.2,2708.1,0.7384]
[1739820888644,0.73838,2708.3,2707.9,1.84619]
[1739820888843,0.0055372,2708.4,2708.1,0.7384]
[1739820889048,0.73839,2708.2,2708.1,0.7384]
[1739820889357,0.0055372,2708.4,2708.2,0.73839]
[1739820889851,0.73837,2708.3,2708.1,0.7384]
[1739820890253,0.0055372,2708.4,2708.1,0.7384]
[1739820890448,0.0055372,2708.4,2708.0,0.73843]
[1739820890449,0.73842,2708.2,2708.0,0.73843]
[1739820890655,0.73838,2708.3,2707.9,1.84617]
[1739820890954,0.0055372,2708.4,2708.1,0.7384]
[1739820890955,0.73839,2708.2,2708.1,0.7384]
[1739820891647,0.7384,2708.2,2707.9,1.84619]
[1739820893152,0.73838,2708.3,2708.2,0.73838]
[1739820893462,0.0055372,2708.4,2707.8,6.9757972]
[1739820893654,0.7384,2708.2,2708.1,0.7384]
[1739820894252,0.73839,2708.2,2707.9,1.84619]
[1739820894447,0.73839,2708.2,2708.1,0.73842]
[1739820894746,0.0055372,2708.4,2707.8,5.1295372]
[1739820894953,4.59935864,2707.9,2707.8,0.0055372]
[1739820895249,3.2078,2708.0,2707.8,0.0055372]
[1739820895453,0.73847,2707.9,2707.8,0.0055372]
[1739820895652,3.2078,2708.0,2707.8,0.0055372]
[1739820895851,0.73847,2707.9,2707.8,0.0055372]
[1739820896952,3.16562001,2708.3,2707.8,0.0055372]
[1739820896953,0.0055372,2708.4,2708.3,0.73837]
[1739820897960,0.7438872,2708.4,2708.1,1.8764]
[1739820898253,0.0055372,2708.4,2708.3,0.73837]
[1739820898457,4.78606322,2709.4,2708.4,1.84585]
[1739820898756,3.2078,2709.5,2709.1,0.73812]
[1739820898952,3.2078,2709.5,2709.2,0.974]
[1739820899155,5.17818865,2709.9,2709.2,0.974]
[1739820899156,4.80858864,2709.9,2709.2,4.1818]
[1739820899347,7.06868864,2710.2,2709.7,0.73798]
[1739820899550,7.43828865,2710.2,2709.7,0.73798]
[1739820899754,7.07422584,2710.2,2709.7,0.7435172]
[1739820899954,0.0055372,2710.2,2709.8,0.73794]
[1739820900353,0.0055372,2710.2,2710.1,0.73787]
[1739820900553,0.0055372,2710.2,2709.9,3.86088864]
[1739820900759,0.0055372,2710.2,2709.9,0.894]
[1739820900959,3.86088864,2710.1,2709.7,0.0055372]
[1739820901157,3.94574,2709.9,2709.7,0.0055372]
[1739820901358,3.86088864,2709.8,2709.7,0.0055372]
[1739820901563,4.59884864,2709.8,2709.7,0.0055372]
[1739820901762,10.59884864,2709.8,2709.7,0.00440458]
[1739820901960,20.26088864,2709.8,2708.6,0.9782]
[1739820902257,3.86088864,2709.1,2708.6,0.9782]
[1739820902458,4.59896864,2709.4,2708.7,3.2078]
[1739820902658,0.7381,2709.3,2708.7,3.2078]
[1739820903054,0.73814,2709.2,2708.7,3.2078]
[1739820903259,3.86088864,2709.1,2708.7,3.2133372]
[1739820903455,0.73819,2709.0,2708.7,3.2133372]
[1739820903660,0.73819,2709.0,2708.7,0.0055372]
[1739820904156,10.4,2709.8,2708.7,7.07422584]
[1739820904458,5.79588864,2710.1,2709.4,3.2078]
[1739820904656,5.79588864,2710.1,2709.6,0.738]
[1739820904657,4.81938864,2710.1,2709.6,0.738]
[1739820905054,4.81938864,2710.1,2709.5,0.9072]
[1739820905055,3.2078,2709.9,2709.5,0.9072]
[1739820905261,4.81938864,2710.1,2708.5,1.30370724]
[1739820905262,3.2078,2709.6,2708.7,7.07422584]
[1739820905567,3.86088864,2709.2,2708.7,3.2133372]
[1739820905861,3.86088864,2709.2,2708.8,0.73821]
[1739820906254,3.86088864,2709.2,2708.7,3.2133372]
[1739820906566,0.73813,2709.2,2708.7,0.0055372]
[1739820906863,3.2078,2709.6,2708.7,3.2133372]
[1739820907061,0.73808,2709.4,2708.8,0.73822]
[1739820907360,0.73808,2709.4,2708.8,0.73821]
[1739820907563,0.73808,2709.4,2708.7,3.2133372]
[1739820907564,3.2078,2709.6,2709.1,0.73814]
[1739820907758,3.2078,2709.9,2709.6,0.73801]
[1739820907958,3.2078,2709.9,2709.1,2.75007]
[1739820908160,0.0055372,2710.2,2710.0,0.73789]
[1739820908362,0.0055372,2710.2,2709.4,3.2078]
[1739820908562,0.0055372,2710.2,2709.7,0.73796]
[1739820908763,0.0055372,2710.2,2709.4,3.2078]
[1739820908965,0.73792,2710.0,2709.5,0.73804]
[1739820909164,0.0055372,2710.2,2709.4,0.73805]
[1739820909363,8.04383658,2710.0,2709.2,0.9457]
[1739820909758,3.2078,2710.0,2709.2,0.9457]
[1739820909958,3.2078,2710.0,2709.4,3.2078]
[1739820910158,3.2078,2710.0,2709.7,0.73798]
[1739820910361,3.2078,2710.0,2709.4,3.2078]
[1739820910560,0.73796,2709.8,2709.4,3.2078]
[1739820910864,8.04383658,2710.0,2709.2,0.9457]
[1739820911063,4.83603658,2709.7,2709.1,4.1268]
[1739820911362,0.73808,2709.4,2709.1,0.919]
[1739820911958,0.73808,2709.4,2708.8,3.2078]
[1739820911959,4.83603658,2709.4,2708.8,3.2078]
[1739820912363,2.983,2709.8,2709.1,3.2078]
[1739820912564,0.73802,2709.6,2709.2,0.9065]
[1739820912858,4.83603658,2709.7,2709.1,0.73814]
[1739820913057,4.83603658,2709.7,2709.1,3.2078]
[1739820913566,0.73804,2709.5,2709.1,0.73814]
[1739820913863,0.73804,2709.5,2708.8,4.1867]
[1739820914064,0.73811,2709.3,2708.9,0.73819]
[1739820914370,5.57403658,2709.7,2709.2,0.7381]
[1739820914559,5.57403658,2709.7,2708.8,3.2078]
[1739820914560,4.83603658,2709.7,2708.8,3.2078]
[1739820914866,0.73811,2709.3,2708.8,3.2078]
[1739820915667,0.73818,2709.0,2708.7,0.0055372]
[1739820915862,0.73817,2709.1,2708.8,0.73822]
[1739820916166,0.73817,2709.1,2708.7,0.7437772]
[1739820916355,0.73817,2709.1,2708.7,0.0055372]
[1739820916754,0.73817,2709.1,2708.8,0.73821]
[1739820916755,0.73815,2709.1,2708.8,0.73821]
[1739820917365,0.73823,2708.8,2708.7,0.0055372]
[1739820917764,0.73822,2708.9,2708.7,0.0055372]
[1739820917967,0.73819,2709.0,2708.7,0.7437972]
[1739820918161,5.80183658,2709.1,2708.7,0.0055372]
[1739820918470,6.54000658,2709.1,2708.7,0.7437872]
[1739820918661,3.2078,2709.2,2708.7,0.0055372]
[1739820918858,0.73818,2709.0,2708.7,0.0055372]
[1739820919263,0.73821,2708.9,2708.7,0.0055372]
[1739820919467,0.7382,2709.0,2708.7,0.7437772]
[1739820920070,0.73822,2708.9,2708.7,0.0055372]
[1739820920371,3.2078,2709.2,2708.9,0.73819]
[1739820920873,3.2078,2709.2,2708.7,0.0055372]
[1739820921369,3.2078,2709.2,2708.9,0.73819]
[1739820921568,3.94594,2709.2,2708.9,0.73819]
[1739820921761,3.2078,2709.2,2708.7,0.0055372]
[1739820921962,0.73823,2708.8,2708.7,0.0055372]
[1739820923871,4.83603658,2709.1,2708.7,0.0055372]
[1739820924072,0.73822,2708.9,2708.7,0.7437872]
[1739820924768,0.73823,2708.8,2708.7,0.0055372]
[1739820926368,1.8454,2709.1,2708.7,0.0055372]
[1739820926369,1.84537,2709.1,2708.7,0.0055372]
[1739820926767,0.73823,2708.8,2708.7,0.0055372]
[1739820928572,1.84537,2709.1,2708.7,0.0055372]
[1739820928767,0.73822,2708.9,2708.7,0.7437772]
[1739820929176,0.73823,2708.8,2708.7,0.0055372]
[1739820930175,0.73823,2708.8,2708.7,0.7437972]
[1739820930371,5.05311,2709.2,2708.7,0.0055372]
[1739820930770,0.73817,2709.1,2708.9,0.73819]
[1739820931274,0.73817,2709.1,2708.7,0.0055372]
[1739820931275,0.73823,2708.8,2708.7,0.0055372]
[1739820932477,5.73823658,2709.1,2708.7,0.0055372]
[1739820932676,0.73817,2709.1,2708.7,0.0055372]
[1739820932877,0.73818,2709.0,2708.8,0.73821]
[1739820933076,7.06720858,2709.2,2708.7,0.0055372]
[1739820933276,0.73823,2708.8,2708.7,0.7437872]
[1739820933775,8.91252858,2709.2,2708.7,0.0055372]
[1739820933977,0.73818,2709.0,2708.8,0.73821]
[1739820934173,7.06720858,2709.2,2708.7,0.0055372]
[1739820934374,0.73823,2708.8,2708.7,0.7437872]
[1739820935379,0.73823,2708.8,2708.7,0.7437972]
[1739820935880,0.73819,2709.0,2708.8,0.73822]
[1739820936278,0.73815,2709.1,2708.8,0.7382]
[1739820936479,0.73819,2709.0,2708.8,0.7382]
[1739820936875,3.85940858,2709.2,2708.7,0.7437772]
[1739820936876,0.73823,2708.8,2708.7,0.7437772]
[1739820937074,0.73823,2708.8,2708.7,0.0055372]
[1739820938674,1.69362,2708.9,2708.7,0.7437972]
[1739820938873,0.73823,2708.8,2708.7,0.0055372]
[1739820939277,0.9554,2708.9,2708.7,0.0055372]
[1739820939482,0.9554,2708.9,2708.8,0.73823]
[1739820939679,0.73823,2708.8,2708.7,0.0055372]
[1739820940078,0.73823,2708.8,2708.7,0.7437972]
[1739820940275,0.73823,2708.8,2708.7,0.0055372]
[1739820940475,0.73819,2709.0,2708.8,0.73822]
[1739820940881,0.73817,2709.1,2708.9,0.73819]
[1739820941183,0.73817,2709.0,2708.9,0.73819]
[1739820941485,8.00610858,2709.2,2708.7,0.0055372]
[1739820941786,0.73819,2709.0,2708.8,0.73822]
[1739820941982,0.7382,2708.9,2708.8,0.73822]
[1739820942183,0.73819,2709.0,2708.9,0.7382]
[1739820942578,8.00610858,2709.2,2708.7,0.0055372]
[1739820942579,0.73816,2709.1,2708.7,0.0055372]
[1739820942984,0.73816,2709.1,2708.9,0.73818]
[1739820943382,8.00610858,2709.2,2708.7,0.0055372]
[1739820943581,0.73822,2708.9,2708.7,0.7437772]
[1739820944382,9.85142858,2709.2,2708.7,0.0055372]
[1739820944587,0.7382,2708.9,2708.8,0.73823]
[1739820944787,0.73823,2708.8,2708.7,0.0055372]
[1739820945189,9.85142858,2709.2,2708.7,0.0055372]
[1739820945394,0.73821,2708.9,2708.7,0.7437672]
[1739820945688,0.73821,2708.9,2708.7,0.0055372]
[1739820945987,0.73821,2708.9,2708.8,0.73822]
[1739820946188,0.73823,2708.8,2708.7,0.0055372]
[1739820946391,9.85142858,2709.2,2708.7,0.0055372]
[1739820946392,0.73823,2708.9,2708.7,0.0055372]
[1739820946592,9.85142858,2709.2,2708.7,0.0055372]
[1739820946983,0.73823,2708.8,2708.7,0.7437772]
[1739820947586,0.73822,2708.9,2708.8,0.73821]
[1739820947787,0.73816,2709.1,2708.9,0.73818]
[1739820947985,4.1467,2709.2,2708.9,0.73818]
[1739820948186,0.73817,2709.0,2708.9,0.73818]
[1739820948786,4.1467,2709.2,2708.7,0.0055372]
[1739820948986,0.7382,2709.0,2708.9,0.7382]
[1739820949691,0.7382,2709.0,2708.7,0.0055372]
[1739820949692,8.00610858,2709.2,2708.7,0.0055372]
[1739820949894,0.73823,2708.8,2708.7,0.0055372]
[1739820950286,8.00610858,2709.2,2708.7,0.0055372]
[1739820950792,0.7382,2709.0,2708.9,0.73819]
[1739820951296,0.73822,2708.9,2708.7,0.0055372]
[1739820951483,0.73822,2708.9,2708.8,0.73823]
[1739820951686,0.73821,2708.9,2708.8,0.73823]
[1739820952093,0.73823,2708.8,2708.7,0.0055372]
[1739820952792,0.73819,2709.0,2708.8,0.73821]
[1739820953192,8.00610858,2709.2,2708.8,0.73821]
[1739820953385,8.00610858,2709.2,2708.7,0.0055372]
[1739820953386,0.73819,2709.0,2708.7,0.0055372]
[1739820953587,4.1467,2709.2,2709.0,0.73816]
[1739820953787,4.1467,2709.2,2708.9,0.73818]
[1739820953987,0.73817,2709.0,2708.9,0.73818]
[1739820954289,0.73817,2709.1,2708.9,0.73818]
[1739820954493,4.1467,2709.2,2708.9,0.73818]
[1739820954694,4.1467,2709.2,2708.8,0.9694]
[1739820954892,4.1467,2709.2,2708.9,0.73819]
[1739820955091,0.73817,2709.0,2708.9,0.73819]
[1739820955489,0.73817,2709.0,2708.8,0.9694]
[1739820955490,0.7382,2709.0,2708.8,0.9694]
[1739820955691,0.7382,2709.0,2708.8,1.70761]
[1739820955890,8.00610858,2709.2,2708.8,0.9694]
[1739820956093,0.7382,2709.0,2708.8,1.70761]
[1739820956394,0.7382,2708.9,2708.8,1.70761]
[1739820956595,8.00610858,2709.2,2708.8,0.9694]
[1739820956798,0.73817,2709.1,2708.9,0.73819]
[1739820956990,0.73818,2709.0,2708.8,0.9694]
[1739820957185,0.73818,2709.0,2708.9,0.7382]
[1739820958998,4.1467,2709.2,2708.8,0.9694]
[1739820959198,0.73819,2709.0,2708.8,0.9694]
[1739820959598,0.73819,2709.0,2708.9,0.7382]
[1739820959798,4.88483,2709.2,2709.0,0.73815]
[1739820960001,4.1467,2709.2,2709.0,0.73815]
[1739820960199,4.1467,2709.2,2708.9,0.73818]
[1739820960200,0.73818,2709.0,2708.9,0.73818]
[1739820960803,15.86308309,2709.1,2708.8,0.9694]
[1739820961101,15.86308309,2709.1,2709.0,0.73817]
[1739820961296,0.73818,2709.0,2708.8,0.9694]
[1739820961498,0.73818,2709.0,2708.9,0.7382]
[1739820962396,0.73817,2709.0,2708.7,0.0055372]
[1739820962596,0.73819,2709.0,2708.9,0.7382]
[1739820962796,16.60124309,2709.1,2708.7,1.8511772]
[1739820962998,16.60124309,2709.1,2709.0,0.73817]
[1739820963200,16.60124309,2709.1,2708.7,1.8511772]
[1739820963595,0.73819,2709.0,2708.9,0.7382]
[1739820963999,15.86308309,2709.1,2708.7,0.0055372]
[1739820964199,0.73819,2709.0,2708.9,0.73819]
[1739820965205,15.86308309,2709.1,2708.7,0.0055372]
[1739820965402,15.86308309,2709.1,2709.0,0.73817]
[1739820965704,0.7382,2709.0,2708.9,0.73818]
[1739820967500,0.7382,2709.0,2708.7,0.0055372]
[1739820967905,0.7382,2709.0,2708.9,0.7382]
[1739820969401,15.86308309,2709.1,2708.7,0.0055372]
[1739820969604,16.60125309,2709.1,2709.0,0.73817]
[1739820969803,15.86308309,2709.1,2708.7,0.0055372]
[1739820970004,0.73819,2709.0,2708.9,0.73818]
[1739820973607,16.60124309,2709.1,2709.0,0.73817]
[1739820973904,7.23308309,2709.1,2709.0,4.59757858]
[1739820974103,1.96082309,2709.1,2709.0,10.59757858]
[1739820974300,0.0055372,2710.2,2709.1,1.84537]
[1739820974506,0.0055372,2710.2,2710.1,7.80507858]
[1739820974700,0.29754033,2711.1,2710.1,7.80507858]
[1739820974701,4.1376,2711.4,2710.1,13.43680858]
[1739820974906,4.1376,2711.4,2710.8,3.2078]
[1739820975412,4.1376,2711.4,2711.1,0.7376]
[1739820975905,4.1376,2711.4,2711.0,0.7431472]
[1739820976213,4.87514,2711.4,2711.0,0.7431472]
[1739820976412,4.87514,2711.4,2711.0,0.0055372]
[1739820976614,4.1376,2711.4,2711.0,0.0055372]
[1739820976809,0.73755,2711.3,2711.0,0.0055372]
[1739820977207,3.85940858,2711.3,2711.0,0.0055372]
[1739820977411,3.9454,2711.1,2711.0,0.0055372]
[1739820977709,3.85940858,2711.3,2710.8,3.2078]
[1739820977906,4.1376,2711.4,2710.8,3.2078]
[1739820978112,3.85940858,2711.3,2710.8,3.2078]
[1739820978416,4.59696858,2711.3,2710.8,3.2078]
[1739820978712,4.59696858,2711.3,2710.8,3.2133372]
[1739820978916,0.73759,2711.2,2710.8,3.2133372]
[1739820979103,3.85940858,2711.0,2710.8,0.0055372]
[1739820979309,3.2078,2710.9,2710.2,3.2078]
[1739820979612,3.2078,2710.6,2710.1,3.2078]
[1739820979904,3.85940858,2710.7,2710.1,3.94566]
[1739820980111,0.73778,2710.5,2710.1,3.2078]
[1739820980502,0.9182,2710.6,2710.1,3.94566]
[1739820980707,0.9182,2710.6,2710.1,3.2078]
[1739820980907,1.65596,2710.6,2710.1,3.94567]
[1739820981307,0.9182,2710.6,2710.1,3.2078]
[1739820981508,0.9182,2710.6,2710.3,0.73782]
[1739820982019,3.2078,2710.9,2710.1,3.2078]
[1739820982218,3.94546,2710.9,2710.4,0.73778]
[1739820982414,3.2078,2710.9,2710.1,3.2078]
[1739820982620,4.59713858,2710.7,2710.1,3.94566]
[1739820982914,0.73786,2710.2,2710.0,0.0055372]
[1739820983120,3.85940858,2710.4,2710.0,0.0055372]
[1739820983417,0.73786,2710.2,2710.0,0.0055372]
[1739820983607,0.73787,2710.1,2710.0,0.0055372]
[1739820983813,4.59727858,2710.1,2710.0,0.0055372]
[1739820984119,0.73804,2709.5,2709.1,3.94594]
[1739820984419,0.73814,2709.2,2708.8,6.1258]
[1739820984611,3.85940858,2709.2,2708.8,3.2078]
[1739820985119,0.0055372,2709.3,2709.0,0.73816]
[1739820985317,0.7436372,2709.3,2708.9,0.73819]
[1739820985713,0.0055372,2709.3,2709.0,0.73816]
[1739820986317,0.0055372,2709.3,2708.8,3.2078]
[1739820986519,0.0055372,2709.3,2709.1,0.73814]
[1739820986713,0.0055372,2709.3,2709.1,3.2078]
[1739820986914,0.0055372,2709.3,2709.2,4.59752858]
[1739820987819,0.0055372,2709.3,2709.2,0.73812]
[1739820988512,0.0055372,2709.3,2709.2,4.59752858]
[1739820988921,0.0055372,2709.3,2709.1,3.2078]
[1739820989119,0.0055372,2709.3,2709.1,3.94593]
[1739820989321,0.0055372,2709.3,2709.2,0.73812]
[1739820990312,0.0055372,2709.3,2709.1,3.2078]
[1739820990517,0.73812,2709.2,2709.1,3.2078]
[1739820990717,0.7436472,2709.3,2709.1,3.94594]
[1739820990918,0.0055372,2709.3,2709.2,0.73812]
[1739820991320,0.0055372,2709.3,2709.1,3.2078]
[1739820991817,0.0055372,2709.3,2709.2,0.73812]
[1739820993223,0.0055372,2709.3,2709.1,3.94594]
[1739820993725,0.0055372,2709.3,2709.1,3.2078]
[1739820994326,0.0055372,2709.3,2709.2,0.73812]
[1739820995816,0.0055372,2709.3,2709.1,3.2078]
[1739820996012,0.7436372,2709.3,2709.1,3.94593]
[1739820996217,0.0055372,2709.3,2709.1,3.2078]
[1739820996419,0.0055372,2709.3,2709.2,0.73812]
[1739821000724,0.0055372,2709.3,2709.2,4.59752858]
[1739821001720,0.0055372,2709.3,2709.2,0.73812]
[1739821001918,0.7436272,2709.3,2709.2,0.73812]
[1739821002123,0.73812,2709.2,2709.1,3.2078]
[1739821002325,1.436,2709.2,2709.0,0.73817]
[1739821002522,0.73815,2709.1,2709.0,0.73817]